fUSD/lending_fUSD_20240606
["ID","MTS","AMOUNT","RATE_DAILY","PERIOD"]
[328659148,1717680646400,-500.0,0.0002757,4]
[328659149,1717680646411,-500.0,0.0002757,4]
[328659150,1717680646421,-608.47504247,0.0002757,4]
[328659151,1717680646431,-500.0,0.0002757,4]
[328659152,1717680646442,-500.0,0.0002757,4]
[328659153,1717680646452,-500.0,0.0002757,4]
[328659154,1717680646462,-212.8033456,0.0002757,4]
[328659155,1717680646475,-287.1966544,0.0002757,4]
[328659156,1717680646485,-500.0,0.0002757,4]
[328659157,1717680646495,-500.0,0.0002757,4]
[328659158,1717680646508,-493.75346974,0.0002757,4]
[328659171,1717680646672,-6.24653026,0.0002757,4]
[328659172,1717680646682,-500.0,0.0002757,4]
[328659173,1717680646694,-500.0,0.0002757,4]
[328659174,1717680646703,-847.44999414,0.0002757,4]
[328659175,1717680646715,-172.99000586,0.0002757,4]
[328659176,1717680646725,-411.01737816,0.0002757,4]
[328659177,1717680646738,-88.98262184,0.0002757,4]
[328659178,1717680646749,-500.0,0.0002757,4]
[328659179,1717680646759,-192.33338924,0.0002757,4]
[328659180,1717680646811,-307.66661076,0.0002757,4]
[328659181,1717680646820,-267.26244653,0.0002757,4]
[328659182,1717680646833,-263.53755347,0.0002757,4]
[328659183,1717680646843,-440.3656475,0.0002757,4]
[328659184,1717680646872,-59.6343525,0.0002757,4]
[328659185,1717680646881,-500.0,0.0002757,4]
[328659186,1717680646891,-370.9176785,0.0002757,4]
[328659187,1717680646903,-129.0823215,0.0002757,4]
[328659188,1717680646913,-500.0,0.0002757,4]
[328659189,1717680646922,-1191.85,0.0002757,4]
[328659190,1717680646932,-500.0,0.0002757,4]
[328659191,1717680646942,-500.0,0.0002757,4]
[328659192,1717680646952,-500.0,0.0002757,4]
[328659193,1717680646961,-625.07222163,0.0002757,4]
[328659194,1717680646970,-500.0,0.0002757,4]
[328659195,1717680646980,-571.67293869,0.0002757,4]
[328659196,1717680646989,-500.0,0.0002757,4]
[328659197,1717680647003,-500.0,0.0002757,4]
[328659198,1717680647014,-500.0,0.0002757,4]
[328659199,1717680647024,-500.0,0.0002757,4]
[328659200,1717680647033,-500.0,0.0002757,4]
[328659201,1717680647042,-1048.19,0.0002757,4]
[328659202,1717680647052,-500.0,0.0002757,4]
[328659203,1717680647062,-500.0,0.0002757,4]
[328659204,1717680647072,-572.88403477,0.0002757,4]
[328659205,1717680647084,-752.86596523,0.0002757,4]
[328659206,1717680647094,-535.14966882,0.0002757,4]
[328659207,1717680647104,-500.0,0.0002757,4]
[328659208,1717680647114,-175.85220334,0.0002757,4]
[328659209,1717680647126,-324.14779666,0.0002757,4]
[328659210,1717680647136,-535.7,0.0002757,4]
[328659211,1717680647145,-500.0,0.0002757,4]
[328659212,1717680647154,-271.99879016,0.0002757,4]
[328659213,1717680647166,-228.00120984,0.0002757,4]
[328659214,1717680647175,-500.0,0.0002757,4]
[328659215,1717680647184,-578.62119822,0.0002757,4]
[328659216,1717680647193,-500.0,0.0002757,4]
[328659218,1717680647203,-500.0,0.0002757,4]
[328659224,1717680647273,-528.55,0.0002757,4]
[328659225,1717680647283,-500.0,0.0002757,4]
[328659226,1717680647292,-500.0,0.0002757,4]
[328659227,1717680647301,-500.0,0.0002757,4]
[328659228,1717680647310,-216.17762167,0.0002757,4]
[328659229,1717680647368,-283.82237833,0.0002757,4]
[328659230,1717680647377,-500.0,0.0002757,4]
[328659231,1717680647386,-500.0,0.0002757,4]
[328659232,1717680647395,-500.0,0.0002757,4]
[328659233,1717680647404,-500.0,0.0002757,4]
[328659234,1717680647414,-589.32811469,0.0002757,4]
[328659235,1717680647423,-500.0,0.0002757,4]
[328659236,1717680647432,-500.0,0.0002757,4]
[328659237,1717680647441,-500.0,0.0002757,4]
[328659238,1717680647450,-500.0,0.0002757,4]
[328659239,1717680647459,-500.0,0.0002757,4]
[328659240,1717680647468,-500.0,0.0002757,4]
[328659241,1717680647477,-600.33,0.0002757,4]
[328659242,1717680647486,-500.0,0.0002757,4]
[328659243,1717680647495,-500.0,0.0002757,4]
[328659244,1717680647507,-500.0,0.0002757,4]
[328659245,1717680647516,-500.0,0.0002757,4]
[328659246,1717680647525,-500.0,0.0002757,4]
[328659247,1717680647535,-500.0,0.0002757,4]
[328659248,1717680647544,-500.0,0.0002757,4]
[328659249,1717680647553,-529.45,0.0002757,4]
[328659250,1717680647562,-500.0,0.0002757,4]
[328659251,1717680647572,-500.0,0.0002757,4]
[328659252,1717680647582,-500.0,0.0002757,4]
[328659253,1717680647591,-500.0,0.0002757,4]
[328659254,1717680647600,-500.0,0.0002757,4]
[328659255,1717680647609,-500.0,0.0002757,4]
[328659256,1717680647618,-500.0,0.0002757,4]
[328659257,1717680647627,-355.76314871,0.0002757,4]
[328659258,1717680647637,-500.0,0.0002757,4]
[328659259,1717680647646,-500.0,0.0002757,4]
[328659260,1717680647656,-500.0,0.0002757,4]
[328659261,1717680647665,-500.0,0.0002757,4]
[328659262,1717680647677,-500.0,0.0002757,4]
[328659263,1717680647687,-500.0,0.0002757,4]
[328659264,1717680647698,-500.0,0.0002757,4]
[328659265,1717680647707,-500.0,0.0002757,4]
[328659266,1717680647717,-500.0,0.0002757,4]
[328659267,1717680647726,-500.0,0.0002757,4]
[328659268,1717680647735,-500.0,0.0002757,4]
[328659269,1717680647748,-500.0,0.0002757,4]
[328659270,1717680647763,-500.0,0.0002757,4]
[328659271,1717680647772,-500.0,0.0002757,4]
[328659272,1717680647782,-228.80492491,0.0002757,4]
[328659273,1717680647794,-271.19507509,0.0002757,4]
[328659274,1717680647803,-67.53190593,0.0002757,4]
[328659275,1717680647814,-432.46809407,0.0002757,4]
[328659276,1717680647824,-500.0,0.0002757,4]
[328659277,1717680647834,-500.0,0.0002757,4]
[328659278,1717680647843,-500.0,0.0002757,4]
[328659279,1717680647854,-569.88,0.0002757,4]
[328659280,1717680647863,-622.96,0.0002757,4]
[328659281,1717680647873,-500.0,0.0002757,4]
[328659282,1717680647882,-240.50190593,0.0002757,4]
[328659283,1717680647895,-259.49809407,0.0002757,4]
[328659284,1717680647905,-825.5,0.0002757,4]
[328659285,1717680647914,-340.38121311,0.0002757,4]
[328659286,1717680647926,-159.61878689,0.0002757,4]
[328659287,1717680647936,-500.0,0.0002757,4]
[328659288,1717680647946,-568.16701712,0.0002757,4]
[328659289,1717680647955,-500.0,0.0002757,4]
[328659290,1717680647964,-500.0,0.0002757,4]
[328659291,1717680647974,-523.76213067,0.0002757,4]
[328659292,1717680647983,-500.0,0.0002757,4]
[328659293,1717680647993,-577.89,0.0002757,4]
[328659294,1717680648004,-500.0,0.0002757,4]
[328659295,1717680648014,-530.6801678,0.0002757,4]
[328659296,1717680648023,-240.66209738,0.0002757,4]
[328659297,1717680648035,-259.33790262,0.0002757,4]
[328659298,1717680648044,-181.65446987,0.0002757,4]
[328659299,1717680648056,-318.34553013,0.0002757,4]
[328659300,1717680648066,-58.60830055,0.0002757,4]
[328659301,1717680648077,-440.36396067,0.0002757,4]
[328659302,1717680648087,-646.30548776,0.0002757,4]
[328659303,1717680648096,-223.75991272,0.0002757,4]
[328659304,1717680648111,-276.24008728,0.0002757,4]
[328659305,1717680648121,-54.13544522,0.0002757,4]
[328659306,1717680648133,-445.86455478,0.0002757,4]
[328659307,1717680648142,-500.91787547,0.0002757,4]
[328659308,1717680648151,-500.0,0.0002757,2]
[328659309,1717680648160,-500.0,0.0002757,4]
[328659310,1717680648170,-397.27718357,0.0002757,4]
[328659311,1717680648179,-384.61362336,0.0002757,4]
[328659312,1717680648188,-2321.98,0.0002757,4]
[328659313,1717680648197,-1149.33,0.0002757,4]
[328659314,1717680648206,-500.0,0.0002757,4]
[328659315,1717680648216,-500.0,0.0002757,4]
[328659316,1717680648225,-531.72799361,0.0002757,4]
[328659317,1717680648246,-70.81200639,0.0002757,4]
[328659318,1717680648258,-500.0,0.0002757,4]
[328659319,1717680648267,-62.75016637,0.0002757,4]
[328659320,1717680648279,-437.24983363,0.0002757,4]
[328659321,1717680648288,-500.0,0.0002757,4]
[328659322,1717680648297,-2669.19,0.0002757,4]
[328659323,1717680648307,-500.0,0.0002757,4]
[328659324,1717680648317,-500.0,0.0002757,4]
[328659325,1717680648326,-500.0,0.0002757,4]
[328659326,1717680648336,-500.0,0.0002757,4]
[328659327,1717680648345,-528.02863973,0.0002757,4]
[328659328,1717680648354,-603.48,0.0002757,4]
[328659329,1717680648364,-500.0,0.0002757,4]
[328659330,1717680648374,-1406.7,0.0002757,4]
[328659331,1717680648384,-500.0,0.0002757,4]
[328659332,1717680648394,-2689.76,0.0002757,4]
[328659333,1717680648404,-2542.6,0.0002757,4]
[328659334,1717680648415,-500.0,0.0002757,4]
[328659335,1717680648424,-500.0,0.0002757,4]
[328659336,1717680648434,-500.0,0.0002757,4]
[328659337,1717680648444,-500.0,0.0002757,4]
[328659338,1717680648454,-1448.63,0.0002757,4]
[328659339,1717680648464,-500.0,0.0002757,4]
[328659340,1717680648473,-4361.1251,0.00027571,2]
[328659341,1717680648483,-70439.12665708,0.00027571,2]
[328659342,1717680648495,-1516.6,0.00027571,2]
[328659343,1717680648734,-263.66693383,0.00027396,2]
[328659344,1717680648744,-108.6717187,0.00027396,2]
[328659345,1717680648758,-131.61032611,0.00027396,2]
[328659346,1717680648768,-1714.62835386,0.00027571,2]
[328659347,1717680648779,-3570.13895904,0.00027571,2]
[328659348,1717680648790,-3399.39625553,0.00027571,2]
[328659349,1717680648807,-619.15962888,0.00027571,2]
[328659350,1717680648819,-771.4335555,0.00027571,2]
[328659351,1717680648830,-281.0,0.00027571,2]
[328659352,1717680648842,-8117.44589011,0.00027571,2]
[328659353,1717680648852,-300.0,0.00027571,2]
[328659354,1717680648861,-1665.9533913,0.00027571,2]
[328659355,1717680648872,-37.4941711,0.00027571,2]
[328659356,1717680648882,-291.08455725,0.00027607,2]
[328659357,1717680648891,-258.80097283,0.0002764,2]
[328659358,1717680648902,-96.72064834,0.00027644,2]
[328659359,1717680648915,-703.27935166,0.00027644,2]
[328659360,1717680648924,-203.0,0.0002767,2]
[328659361,1717680648934,-213.0,0.0002767,2]
[328659362,1717680648945,-500.0,0.00027671,4]
[328659363,1717680648954,-500.0,0.00027671,4]
[328659364,1717680648964,-500.0,0.00027671,4]
[328659365,1717680648973,-282.23,0.00027671,4]
[328659366,1717680648983,-500.0,0.00027671,4]
[328659367,1717680648992,-500.0,0.00027671,4]
[328659368,1717680649002,-500.0,0.00027671,4]
[328659369,1717680649012,-500.0,0.00027671,4]
[328659370,1717680649022,-606.17857026,0.00027671,4]
[328659371,1717680649031,-146.6669748,0.00027671,4]
[328659372,1717680649044,-353.3330252,0.00027671,4]
[328659373,1717680649054,-500.0,0.00027671,4]
[328659374,1717680649063,-500.0,0.00027671,4]
[328659375,1717680649073,-500.0,0.00027671,4]
[328659376,1717680649082,-500.0,0.00027671,4]
[328659377,1717680649092,-500.0,0.00027671,4]
[328659378,1717680649101,-25.16697479,0.00027671,4]
[328659379,1717680649114,-324.23779872,0.00027671,4]
[328659380,1717680649125,-150.59522649,0.00027671,4]
[328659381,1717680649135,-500.0,0.00027671,4]
[328659382,1717680649145,-500.0,0.00027671,4]
[328659383,1717680649154,-500.0,0.00027671,4]
[328659384,1717680649164,-500.0,0.00027671,4]
[328659385,1717680649173,-100.5307563,0.00027671,4]
[328659386,1717680649184,-399.4692437,0.00027671,4]
[328659387,1717680649194,-500.0,0.00027671,4]
[328659388,1717680649204,-500.0,0.00027671,4]
[328659389,1717680649214,-500.0,0.00027671,4]
[328659390,1717680649223,-292.84079062,0.00027671,4]
[328659391,1717680649235,-207.15920938,0.00027671,4]
[328659392,1717680649244,-500.0,0.00027671,4]
[328659393,1717680649254,-500.0,0.00027671,4]
[328659394,1717680649263,-500.0,0.00027671,4]
[328659395,1717680649272,-306.09079062,0.00027671,4]
[328659396,1717680649283,-252.67773479,0.00027671,4]
[328659397,1717680649292,-570.79,0.00027671,4]
[328659398,1717680649302,-452.31973951,0.00027671,4]
[328659414,1717681040367,159.09,0.0003,40]
[328659416,1717681276817,-411.04983464,0.0001008,2]
[328659417,1717681276842,-188.95016536,0.0001008,2]
[328659418,1717681566783,154.15186399,9.967e-05,2]
[328659419,1717681654339,-155.0,0.00010059,2]
[328659420,1717681654362,-282.76675085,0.0001006,2]
[328659421,1717681654385,-296.62503898,0.00010061,2]
[328659422,1717681654407,-205.53087797,0.00010062,2]
[328659423,1717681654428,-1692.1773322,0.00010064,2]
[328659425,1717681807336,-2813.0,0.00010063,2]
[328659444,1717681832141,-2760.52,0.00010063,2]
[328659445,1717681832178,-2168.70246213,0.00010063,2]
[328659452,1717681832404,-0.95226919,0.00010063,2]
[328659459,1717681832461,-1.05616744,0.00010063,2]
[328659461,1717681832473,-1147.35644578,0.00010063,2]
[328659463,1717681832485,-809.5918799,0.00010063,2]
[328659465,1717681832494,-2928.47075087,0.00010063,2]
[328659467,1717681832507,-1829.04915801,0.00010063,2]
[328659469,1717681832517,-303.27782747,0.00010064,2]
[328659473,1717681832555,-267.23393513,0.00010064,2]
[328659474,1717681832567,-1122.08250682,0.00010064,2]
[328659475,1717681832576,-327.81540231,0.00010082,2]
[328659476,1717681832586,-150.0,0.00010082,2]
[328659477,1717681832596,-1489.2883817,0.00010096,2]
[328659478,1717681832605,-243.43525382,0.000101,2]
[328659479,1717681832614,-499.99,0.000101,2]
[328659480,1717681832623,-360.43,0.00011458,2]
[328659481,1717681832632,-3339.34141866,0.00013,2]
[328659482,1717681832642,-10041.17,0.00013182,2]
[328659483,1717681832651,-1000.0,0.00013419,2]
[328659484,1717681832660,-250.0,0.00013685,2]
[328659485,1717681832669,-150.0,0.00013687,2]
[328659486,1717681832678,-219.0,0.00013687,2]
[328659487,1717681832687,-4033.37744871,0.00013688,2]
[328659499,1717681837934,-300.11965555,0.00013688,2]
[328659500,1717681837949,-278.48158518,0.00013688,2]
[328659501,1717681837959,-659.5783,0.000137,2]
[328659502,1717681837969,-360.43,0.00013722,2]
[328659503,1717681837978,-204.78051809,0.00013798,2]
[328659504,1717681837989,-19.30799374,0.00013798,2]
[328659505,1717681838003,-265.40039145,0.00013798,2]
[328659506,1717681838018,-162.9266734,0.00013798,2]
[328659507,1717681838028,-296.58359376,0.00013798,2]
[328659508,1717681838038,-161.46550851,0.00013798,2]
[328659509,1717681838049,-2812.27869727,0.00013798,2]
[328659510,1717681838059,-482.08692557,0.00013799,2]
[328659511,1717681838069,-100000.0,0.000138,2]
[328659512,1717681838080,-12496.4107,0.000138,2]
[328659513,1717681838090,-266.68,0.00013867,2]
[328659514,1717681838100,-250.0,0.00013947,2]
[328659515,1717681838111,-3511.40916455,0.00013982,2]
[328659516,1717681838121,-291.08455725,0.00013982,2]
[328659517,1717681838131,-151.45,0.0001399,2]
[328659518,1717681838140,-277.19391137,0.0001399,2]
[328659519,1717681838150,-277.19391137,0.0001399,2]
[328659520,1717681838160,-307007.83596545,0.00014,2]
[328659521,1717681838173,-3997.28285274,0.00014,2]
[328659522,1717681838185,-1023.35564312,0.00014,2]
[328659523,1717681838227,-811642.02994733,0.00014,2]
[328659524,1717681838239,-348.14280035,0.00014,2]
[328659525,1717681838272,-3154.41302957,0.00014,2]
[328659526,1717681838285,-131981.1630768,0.00014,2]
[328659534,1717681841116,-1710.60231821,0.00014,2]
[328659535,1717681842536,-728.05842579,0.00014,2]
[328659536,1717681842548,-861.78488582,0.00014,2]
[328659537,1717681842560,-3111.79124193,0.00014,2]
[328659538,1717681842571,-3602.21195516,0.00014,2]
[328659539,1717681842582,-4128.63986883,0.00014,2]
[328659540,1717681842594,-3933.36463944,0.00014,2]
[328659543,1717681842614,-4432.26839026,0.00014,2]
[328659545,1717681842625,-6757.96750055,0.00014,2]
[328659547,1717681842637,-40392.07785512,0.00014,2]
[328659549,1717681842649,-1617.592005,0.00014,2]
[328659552,1717681842660,-1363.68834929,0.00014,2]
[328659554,1717681842672,-2023.404,0.00014,2]
[328659562,1717681843109,-3102.43404838,0.00014,2]
[328659564,1717681843121,-138177.50136056,0.00014,2]
[328659566,1717681843292,-919632.78276426,0.00014,2]
[328659567,1717681843550,-4825.5268234,0.00014,2]
[328659568,1717681843562,-10974.11344095,0.00014,2]
[328659569,1717681843574,-7316.35774041,0.00014,2]
[328659570,1717681843586,-1830.93248754,0.00014,2]
[328659571,1717681843598,-5869.08853185,0.00014,2]
[328659572,1717681843610,-7599.14961906,0.00014,2]
[328659573,1717681843621,-28093.80795117,0.00014,2]
[328659604,1717681846081,-2622.66559112,0.00010063,2]
[328659605,1717681846093,-21487.3139714,0.00014,2]
[328659606,1717681846105,-5372.51390141,0.00014,2]
[328659607,1717681846248,-476.76250001,0.00014,2]
[328659608,1717681846284,-579.38487268,0.00014,2]
[328659630,1717681849667,200.0,0.000138,5]
[328659631,1717681851819,500.0,0.000139,5]
[328659642,1717682599129,6823.67735124,0.0003,120]
[328659662,1717683032045,-838.296,0.00012608,2]
[328659679,1717683032239,-1354.82820193,0.00012608,2]
[328659680,1717683032248,-658.62502392,0.00012609,2]
[328659681,1717683032257,-1555.60315415,0.0001261,2]
[328659682,1717683032269,-287.37338502,0.0001261,2]
[328659683,1717683032280,-259.1,0.0001261,2]
[328659684,1717683032291,-267.19226476,0.0001261,2]
[328659685,1717683032300,-531.0306251,0.00012611,2]
[328659686,1717683032309,-429.53862842,0.00012612,2]
[328659687,1717683032318,-3384.77160162,0.00012612,2]
[328659688,1717683032328,-4611.97868944,0.00012612,2]
[328659689,1717683032337,-1276.4979732,0.00012613,2]
[328659690,1717683032346,-150.0,0.00012616,2]
[328659691,1717683032355,-150.0,0.00012616,2]
[328659692,1717683032364,-363.31,0.00012663,2]
[328659693,1717683032374,-499.99,0.0001386,2]
[328659694,1717683032383,-1050.41,0.00013896,2]
[328659695,1717683032393,-426.4888,0.000139,2]
[328659696,1717683032403,-1000.0,0.000139,2]
[328659697,1717683032415,-413.35149323,0.00013966,2]
[328659698,1717683032427,-1531.67403765,0.00013998,2]
[328659699,1717683032437,-790.98303269,0.00013998,2]
[328659700,1717683032446,-326.36039384,0.00013998,2]
[328659701,1717683032455,-237.7692352,0.00013998,2]
[328659702,1717683032466,-480.88976442,0.00013998,2]
[328659703,1717683032476,-542.00347646,0.00013999,2]
[328659704,1717683032486,-145611.07522159,0.00014,2]
[328659705,1717683032498,-14314.671,0.00014,2]
[328659706,1717683032508,-2471.99393,0.00014,2]
[328659707,1717683032518,-627.99,0.00014046,2]
[328659708,1717683032529,-250.0,0.00014059,2]
[328659709,1717683032538,-1000.45,0.00014103,2]
[328659710,1717683032548,-250.0,0.00014115,2]
[328659711,1717683032558,-200.0,0.0001439,2]
[328659712,1717683032567,-150.0,0.0001443,2]
[328659713,1717683032577,-177.68,0.00014447,2]
[328659714,1717683032586,-4361.1251,0.000148,2]
[328659715,1717683032595,-44054.207,0.000149,2]
[328659716,1717683032604,-1206.3982,0.000149,2]
[328659717,1717683032614,-155.28058373,0.000149,2]
[328659718,1717683032624,-363.31,0.00014927,2]
[328659720,1717683032633,-620.741956,0.00015,2]
[328659722,1717683032642,-237258.74988908,0.00015,2]
[328659724,1717683032651,-155.0,0.00015,2]
[328659726,1717683032660,-200.0,0.00015089,2]
[328659728,1717683032669,-1000.0,0.00015096,2]
[328659730,1717683032678,-3511.40916452,0.00015429,2]
[328659732,1717683032687,-200.0,0.00015436,2]
[328659734,1717683032696,-1000.0,0.00016773,2]
[328659735,1717683032705,-1000.45,0.00016843,2]
[328659736,1717683032714,-3511.40916452,0.00016876,2]
[328659737,1717683032723,-200.0,0.00016975,2]
[328659738,1717683032732,-172.83,0.00017181,2]
[328659739,1717683032741,-363.31,0.00017191,2]
[328659740,1717683032750,-5665.12353146,0.00017225,2]
[328659741,1717683032759,-649.34168046,0.00018,2]
[328659742,1717683032768,-155.28058369,0.00018205,2]
[328659743,1717683032777,-3511.40916452,0.00018323,2]
[328659744,1717683032786,-1000.0,0.00018451,2]
[328659745,1717683032795,-200.0,0.00018861,2]
[328659746,1717683032804,-2471.99394,0.00019,2]
[328659747,1717683032814,-804.0,0.000191,2]
[328659748,1717683032823,-500.0,0.00019178,2]
[328659749,1717683032834,-630.46250064,0.00019178,2]
[328659750,1717683032845,-2838.0,0.000192,2]
[328659751,1717683032856,-363.31,0.00019455,2]
[328659752,1717683032866,-1000.45,0.00019582,2]
[328659753,1717683032876,-3511.40916452,0.0001977,2]
[328659754,1717683032886,-1980.08690757,0.0002,2]
[328659755,1717683032896,-226.60187199,0.000201,2]
[328659756,1717683032906,-1000.0,0.00020128,2]
[328659757,1717683032916,-200.0,0.00020747,2]
[328659758,1717683032926,-1076.542,0.00021063,2]
[328659759,1717683032936,-1224.0,0.00021063,2]
[328659760,1717683032947,-440.0,0.00021063,2]
[328659761,1717683032958,-614.0,0.00021063,2]
[328659762,1717683032967,-871.0,0.00021063,2]
[328659763,1717683032977,-207.062,0.00021063,2]
[328659764,1717683032986,-37989.0,0.00021063,2]
[328659765,1717683032995,-3511.40916452,0.00021217,2]
[328659766,1717683033005,-155.28058369,0.0002151,2]
[328659767,1717683033016,-363.31,0.00021719,2]
[328659768,1717683033025,-505.46,0.00021918,2]
[328659769,1717683033035,-659.26,0.00021918,2]
[328659770,1717683033044,-250.0,0.00021918,2]
[328659771,1717683033054,-171.21,0.00022019,2]
[328659772,1717683033063,-200.0,0.00022633,2]
[328659773,1717683033072,-3511.40916452,0.00022665,2]
[328659774,1717683033081,-363.31,0.00023982,2]
[328659775,1717683033090,-2471.99394,0.00024,2]
[328659776,1717683033100,-199.0,0.00024063,2]
[328659777,1717683033109,-3511.40916452,0.00024112,2]
[328659778,1717683033120,-159.58,0.00024384,2]
[328659779,1717683033129,-168.94,0.00024384,2]
[328659780,1717683033139,-367.77,0.00024384,2]
[328659781,1717683033150,-224.8,0.00024384,2]
[328659782,1717683033160,-273.95413502,0.00024798,2]
[328659783,1717683033170,-273.95413496,0.00024798,2]
[328659784,1717683033179,-273.95413496,0.00024798,2]
[328659785,1717683033189,-273.95413496,0.00024798,2]
[328659786,1717683033198,-273.95413496,0.00024798,2]
[328659787,1717683033208,-273.95413496,0.00024798,2]
[328659788,1717683033218,-273.95413496,0.00024798,2]
[328659789,1717683033230,-243.41403558,0.00024799,2]
[328659790,1717683033240,-243.41403551,0.00024799,2]
[328659791,1717683033251,-243.41403551,0.00024799,2]
[328659792,1717683033261,-243.41403551,0.00024799,2]
[328659793,1717683033271,-243.41403551,0.00024799,2]
[328659794,1717683033282,-243.41403551,0.00024799,2]
[328659795,1717683033292,-243.41403551,0.00024799,2]
[328659796,1717683033301,-155.28058369,0.00024814,2]
[328659797,1717683033311,-706.05483356,0.00025,2]
[328659798,1717683033320,-713.77198143,0.00025,2]
[328659799,1717683033330,-325.39983263,0.00025,2]
[328659800,1717683033340,-150.0,0.00025189,2]
[328659801,1717683033350,-150.0,0.00025381,2]
[328659802,1717683033360,-3511.40916452,0.00025559,2]
[328659803,1717683033369,-150.0,0.00025718,2]
[328659804,1717683033379,-150.0,0.00025784,2]
[328659805,1717683033388,-300.0,0.0002589,2]
[328659806,1717683033397,-422.3,0.0002589,2]
[328659807,1717683033406,-164.06,0.0002589,2]
[328659808,1717683033419,-353.13,0.0002589,2]
[328659809,1717683033428,-158.37,0.0002589,2]
[328659810,1717683033437,-300.0,0.0002589,2]
[328659811,1717683033446,-150.0,0.00025942,2]
[328659812,1717683033455,-150.0,0.00026113,2]
[328659813,1717683033464,-150.0,0.00026198,2]
[328659814,1717683033473,-500.0,0.00026244,2]
[328659815,1717683033482,-500.0,0.00026244,2]
[328659816,1717683033492,-363.31,0.00026246,2]
[328659817,1717683033501,-150.0,0.00026319,2]
[328659818,1717683033510,-273.95413496,0.00026344,2]
[328659819,1717683033519,-243.41403551,0.00026344,2]
[328659820,1717683033528,-150.0,0.00026436,2]
[328659821,1717683033538,-150.0,0.00026438,2]
[328659822,1717683033547,-152.0,0.00026711,3]
[328659823,1717683033558,-150.0,0.00026788,2]
[328659824,1717683033567,-500.0,0.00026792,2]
[328659825,1717683033576,-200.0,0.000268,9]
[328659826,1717683033586,-150.0,0.00026874,2]
[328659827,1717683033596,-500.0,0.000269,9]
[328659828,1717683033605,-150.0,0.00026969,2]
[328659829,1717683033614,-151.46,0.0002699,2]
[328659830,1717683033623,-254.93585412,0.0002699,2]
[328659831,1717683033633,-250000.0,0.00027,2]
[328659832,1717683033642,-3511.40916452,0.00027006,2]
[328659833,1717683033652,-199.0,0.00027063,2]
[328659834,1717683033662,-150.0,0.00027134,2]
[328659835,1717683033672,-150.0,0.0002717,2]
[328659836,1717683033682,-150.0,0.0002717,2]
[328659837,1717683033692,-150.0,0.00027262,2]
[328659838,1717683033701,-215.0,0.00027297,2]
[328659839,1717683033711,-1000.0,0.00027297,2]
[328659840,1717683033722,-500.0,0.0002734,2]
[328659841,1717683033732,-150.0,0.00027367,2]
[328659842,1717683033744,-502.67015523,0.00027397,4]
[328659843,1717683033754,-500.0,0.00027397,4]
[328659844,1717683033763,-500.0,0.00027397,4]
[328659845,1717683033773,-500.0,0.00027397,4]
[328659846,1717683033782,-500.0,0.00027397,4]
[328659847,1717683033792,-500.0,0.00027397,4]
[328659848,1717683033802,-500.0,0.00027397,4]
[328659849,1717683033813,-500.0,0.00027397,4]
[328659850,1717683033823,-500.0,0.00027397,4]
[328659851,1717683033832,-500.0,0.00027397,4]
[328659852,1717683033841,-500.0,0.00027397,4]
[328659853,1717683033850,-500.0,0.00027397,4]
[328659854,1717683033859,-156.97438217,0.00027397,4]
[328659855,1717683033869,-500.0,0.00027397,4]
[328659856,1717683033878,-174.50939996,0.00027397,4]
[328659857,1717683033887,-500.0,0.00027397,4]
[328659858,1717683033897,-500.0,0.00027397,4]
[328659859,1717683033906,-500.0,0.00027397,4]